[Event "Titled Tuesday Blitz June 27 Early 2023"]
[White "Pinheiro, Iung Alicio de O."]
[Black "Buscar, Michael"]
[WhiteFideId "2104350"]
[BlackFideId "2603616"]
[WhiteElo "2561"]
[BlackElo "2393"]
[Result "1/2-1/2"]
[Round "7"]
[TimeControl "180+2"]
[Date "2023.06.27"]
[WhiteClock "0:00:41"]
[BlackClock "0:02:17"]
[Board "147"]

1. d4 {[%clk 0:03:00]}  d5 {[%clk 0:02:59]} 2. c4 {[%clk 0:02:59]}  e6 {[%clk 0:02:57]} 3. Nc3 {[%clk 0:02:58]}  Nf6 {[%clk 0:02:55]} 4. cxd5 {[%clk 0:02:56]}  exd5 {[%clk 0:02:54]} 5. Bg5 {[%clk 0:02:56]}  c6 {[%clk 0:02:54]} 6. e3 {[%clk 0:02:55]}  Be7 {[%clk 0:02:53]} 7. Bd3 {[%clk 0:02:55]}  O-O {[%clk 0:02:53]} 8. Qc2 {[%clk 0:02:55]}  Na6 {[%clk 0:02:48]} 9. Bxf6 {[%clk 0:02:31]}  Bxf6 {[%clk 0:02:44]} 10. Bxh7+ {[%clk 0:00:41]}  Kh8 {[%clk 0:02:17]} 1/2-1/2


[Site "https://www.chess.com"]

[Event "Titled Tuesday Blitz June 27 Early 2023"]
[White "Estrada Nieto, Julian"]
[Black "Sovetbekova, Nurai"]
[WhiteFideId "5101018"]
[BlackFideId "13801910"]
[WhiteElo "2496"]
[BlackElo "2351"]
[Result "1/2-1/2"]
[Round "7"]
[TimeControl "180+2"]
[Date "2023.06.27"]
[WhiteClock "0:01:10"]
[BlackClock "0:01:50"]
[Board "153"]

1. e4 {[%clk 0:03:00]}  c5 {[%clk 0:02:59]} 2. Nf3 {[%clk 0:03:00]}  Nc6 {[%clk 0:02:59]} 3. Bb5 {[%clk 0:02:59]}  e5 {[%clk 0:02:58]} 4. O-O {[%clk 0:02:55]}  Bd6 {[%clk 0:02:57]} 5. c3 {[%clk 0:02:55]}  a6 {[%clk 0:02:57]} 6. Bxc6 {[%clk 0:02:50]}  dxc6 {[%clk 0:02:56]} 7. d4 {[%clk 0:02:51]}  exd4 {[%clk 0:02:55]} 8. cxd4 {[%clk 0:02:51]}  cxd4 {[%clk 0:02:55]} 9. Qxd4 {[%clk 0:02:48]}  f6 {[%clk 0:02:23]} 10. Rd1 {[%clk 0:01:10]}  Bc7 {[%clk 0:01:50]} 1/2-1/2


[Site "https://www.chess.com"]

[Event "Titled Tuesday Blitz June 27 Early 2023"]
[White "Nithyalakshmi, Sivanesan"]
[Black "Eynullayev, Altay"]
[WhiteFideId "5706955"]
[BlackFideId "13413562"]
[WhiteElo "2341"]
[BlackElo "2473"]
[Result "1-0"]
[Round "7"]
[TimeControl "180+2"]
[Date "2023.06.27"]
[WhiteClock "0:01:08"]
[BlackClock "0:00:30"]
[Board "155"]

1. e4 {[%clk 0:02:55]}  c5 {[%clk 0:02:57]} 2. Nc3 {[%clk 0:02:53]}  d6 {[%clk 0:02:57]} 3. f4 {[%clk 0:02:53]}  g6 {[%clk 0:02:57]} 4. Nf3 {[%clk 0:02:53]}  Bg7 {[%clk 0:02:57]} 5. Bc4 {[%clk 0:02:52]}  Nc6 {[%clk 0:02:57]} 6. d3 {[%clk 0:02:52]}  e6 {[%clk 0:02:57]} 7. O-O {[%clk 0:02:52]}  Nge7 {[%clk 0:02:57]} 8. Qe1 {[%clk 0:02:52]}  O-O {[%clk 0:02:57]} 9. Qh4 {[%clk 0:02:50]}  Nd4 {[%clk 0:02:51]} 10. f5 {[%clk 0:02:45]}  gxf5 {[%clk 0:02:46]} 11. Ng5 {[%clk 0:02:41]}  h6 {[%clk 0:02:44]} 12. Nh3 {[%clk 0:02:18]}  Ng6 {[%clk 0:02:01]} 13. Qh5 {[%clk 0:02:13]}  Qh4 {[%clk 0:01:50]} 14. Qd1 {[%clk 0:01:52]}  Bd7 {[%clk 0:01:28]} 15. Bd2 {[%clk 0:01:39]}  b5 {[%clk 0:01:25]} 16. Be1 {[%clk 0:01:36]}  Qe7 {[%clk 0:01:19]} 17. Bb3 {[%clk 0:01:35]}  b4 {[%clk 0:01:08]} 18. Ne2 {[%clk 0:01:34]}  fxe4 {[%clk 0:01:01]} 19. Nef4 {[%clk 0:01:14]}  e3 {[%clk 0:00:50]} 20. Qh5 {[%clk 0:01:09]}  Qh4 {[%clk 0:00:30]} 21. Bxh4 {[%clk 0:01:08]} 1-0


[Site "https://www.chess.com"]

[Event "Titled Tuesday Blitz June 27 Early 2023"]
[White "Adireddy Arjun"]
[Black "Alvarado Diaz, Alejandro"]
[WhiteFideId "25647709"]
[BlackFideId "2276119"]
[WhiteElo "2335"]
[BlackElo "2471"]
[Result "0-1"]
[Round "7"]
[TimeControl "180+2"]
[Date "2023.06.27"]
[WhiteClock "0:00:00"]
[BlackClock "0:01:57"]
[Board "156"]

1. e4 {[%clk 0:03:00]}  c6 {[%clk 0:02:59]} 2. d4 {[%clk 0:02:59]}  d5 {[%clk 0:02:57]} 3. Nc3 {[%clk 0:02:59]}  dxe4 {[%clk 0:02:56]} 4. Nxe4 {[%clk 0:02:59]}  Bf5 {[%clk 0:02:55]} 5. Ng3 {[%clk 0:02:59]}  Bg6 {[%clk 0:02:54]} 6. h4 {[%clk 0:03:00]}  h6 {[%clk 0:02:53]} 7. Nf3 {[%clk 0:03:00]}  Nf6 {[%clk 0:02:50]} 8. h5 {[%clk 0:02:53]}  Bh7 {[%clk 0:02:50]} 9. Bd3 {[%clk 0:02:53]}  Bxd3 {[%clk 0:02:51]} 10. Qxd3 {[%clk 0:02:54]}  e6 {[%clk 0:02:49]} 11. Bd2 {[%clk 0:02:54]}  c5 {[%clk 0:02:47]} 12. O-O-O {[%clk 0:02:52]}  Nc6 {[%clk 0:02:45]} 13. Be3 {[%clk 0:02:50]}  Qa5 {[%clk 0:02:13]} 14. Kb1 {[%clk 0:00:00]}  O-O-O {[%clk 0:01:57]} 0-1


[Site "https://www.chess.com"]

[Event "Titled Tuesday Blitz June 27 Early 2023"]
[White "Bueno, Alfeu Junior Varela"]
[Black "Corredor Castellanos, Camilo"]
[WhiteFideId "2108879"]
[BlackFideId "4425871"]
[WhiteElo "2312"]
[BlackElo "2454"]
[Result "1/2-1/2"]
[Round "7"]
[TimeControl "180+2"]
[Date "2023.06.27"]
[WhiteClock "0:02:17"]
[BlackClock "0:00:54"]
[Board "159"]

1. e4 {[%clk 0:03:00]}  e5 {[%clk 0:02:59]} 2. Nc3 {[%clk 0:03:01]}  Nc6 {[%clk 0:02:58]} 3. Bc4 {[%clk 0:02:57]}  Nf6 {[%clk 0:02:57]} 4. d3 {[%clk 0:02:57]}  Na5 {[%clk 0:02:57]} 5. Bb3 {[%clk 0:02:54]}  Nxb3 {[%clk 0:02:57]} 6. axb3 {[%clk 0:02:55]}  Be7 {[%clk 0:02:54]} 7. f4 {[%clk 0:02:54]}  d6 {[%clk 0:02:52]} 8. Nf3 {[%clk 0:02:54]}  O-O {[%clk 0:02:52]} 9. fxe5 {[%clk 0:02:48]}  dxe5 {[%clk 0:02:51]} 10. Nxe5 {[%clk 0:02:49]}  Bc5 {[%clk 0:02:49]} 11. Nf3 {[%clk 0:02:46]}  Re8 {[%clk 0:02:49]} 12. Bg5 {[%clk 0:02:35]}  h6 {[%clk 0:00:54]} 13. Bh4 {[%clk 0:02:17]} 1/2-1/2


[Site "https://www.chess.com"]

[Event "Titled Tuesday Blitz June 27 Early 2023"]
[White "Eidelman, Gabriel"]
[Black "Blokhin, Sofia"]
[WhiteFideId "30910544"]
[BlackFideId "4508190"]
[WhiteElo "2443"]
[BlackElo "2306"]
[Result "0-1"]
[Round "7"]
[TimeControl "180+2"]
[Date "2023.06.27"]
[WhiteClock "0:00:00"]
[BlackClock "0:01:47"]
[Board "161"]

1. Nf3 {[%clk 0:03:00]}  g6 {[%clk 0:02:59]} 2. c4 {[%clk 0:02:57]}  Bg7 {[%clk 0:02:57]} 3. d4 {[%clk 0:02:58]}  f5 {[%clk 0:02:57]} 4. Nc3 {[%clk 0:02:55]}  Nf6 {[%clk 0:02:57]} 5. g3 {[%clk 0:02:56]}  O-O {[%clk 0:02:56]} 6. Bg2 {[%clk 0:02:56]}  d6 {[%clk 0:02:55]} 7. O-O {[%clk 0:02:57]}  Nc6 {[%clk 0:02:55]} 8. Re1 {[%clk 0:02:52]}  e5 {[%clk 0:02:49]} 9. d5 {[%clk 0:02:48]}  Ne7 {[%clk 0:02:45]} 10. e4 {[%clk 0:02:44]}  fxe4 {[%clk 0:02:42]} 11. Ng5 {[%clk 0:02:42]}  Nf5 {[%clk 0:02:32]} 12. Ngxe4 {[%clk 0:00:00]}  Nd4 {[%clk 0:01:47]} 0-1


[Site "https://www.chess.com"]

[Event "Titled Tuesday Blitz June 27 Early 2023"]
[White "Sarkar, Justin"]
[Black "Rios Escobar, Adan"]
[WhiteFideId "2010011"]
[BlackFideId "3403645"]
[WhiteElo "2277"]
[BlackElo "2439"]
[Result "1/2-1/2"]
[Round "7"]
[TimeControl "180+2"]
[Date "2023.06.27"]
[WhiteClock "0:00:47"]
[BlackClock "0:02:15"]
[Board "162"]

1. e4 {[%clk 0:02:57]}  c5 {[%clk 0:02:58]} 2. Nf3 {[%clk 0:02:55]}  d6 {[%clk 0:02:57]} 3. d4 {[%clk 0:02:54]}  cxd4 {[%clk 0:02:57]} 4. Nxd4 {[%clk 0:02:55]}  Nf6 {[%clk 0:02:57]} 5. Nc3 {[%clk 0:02:54]}  a6 {[%clk 0:02:58]} 6. Be3 {[%clk 0:02:53]}  e5 {[%clk 0:02:57]} 7. Nb3 {[%clk 0:02:52]}  Be7 {[%clk 0:02:58]} 8. Qd2 {[%clk 0:02:43]}  Ng4 {[%clk 0:02:57]} 9. Nd5 {[%clk 0:02:39]}  Nxe3 {[%clk 0:02:56]} 10. Qxe3 {[%clk 0:02:38]}  Be6 {[%clk 0:02:54]} 11. Nb6 {[%clk 0:02:25]}  Bg5 {[%clk 0:02:44]} 12. Qg3 {[%clk 0:00:47]}  Qxb6 {[%clk 0:02:15]} 1/2-1/2


[Site "https://www.chess.com"]

[Event "Titled Tuesday Blitz June 27 Early 2023"]
[White "Lacasa Diaz, Jose Antonio"]
[Black "Li, Eric"]
[WhiteFideId "2203375"]
[BlackFideId "30939941"]
[WhiteElo "2429"]
[BlackElo "2250"]
[Result "1-0"]
[Round "7"]
[TimeControl "180+2"]
[Date "2023.06.27"]
[WhiteClock "0:02:30"]
[BlackClock "0:00:00"]
[Board "163"]

1. e4 {[%clk 0:02:59]}  c5 {[%clk 0:02:59]} 2. Nf3 {[%clk 0:02:58]}  Nc6 {[%clk 0:02:59]} 3. Bb5 {[%clk 0:02:57]}  d6 {[%clk 0:02:59]} 4. Bxc6+ {[%clk 0:02:55]}  bxc6 {[%clk 0:03:00]} 5. e5 {[%clk 0:02:56]}  dxe5 {[%clk 0:02:59]} 6. Nxe5 {[%clk 0:02:55]}  Qd5 {[%clk 0:02:59]} 7. Nf3 {[%clk 0:02:52]}  Qe4+ {[%clk 0:02:59]} 8. Qe2 {[%clk 0:02:51]}  Qxe2+ {[%clk 0:02:57]} 9. Kxe2 {[%clk 0:02:52]}  f6 {[%clk 0:02:47]} 10. d3 {[%clk 0:02:50]}  e5 {[%clk 0:02:46]} 11. Nbd2 {[%clk 0:02:45]}  Ne7 {[%clk 0:00:00]} 12. b3 {[%clk 0:02:30]} 1-0


[Site "https://www.chess.com"]

[Event "Titled Tuesday Blitz June 27 Early 2023"]
[White "KSho99"]
[Black "KorolDimitriy75"]
[WhiteElo "2217"]
[BlackElo "2428"]
[Result "1/2-1/2"]
[Round "7"]
[TimeControl "180+2"]
[Date "2023.06.27"]
[WhiteClock "0:02:13"]
[BlackClock "0:01:14"]
[Board "164"]

1. d4 {[%clk 0:03:00]}  Nf6 {[%clk 0:02:59]} 2. Nc3 {[%clk 0:03:01]}  d5 {[%clk 0:02:58]} 3. Bf4 {[%clk 0:03:01]}  g6 {[%clk 0:02:58]} 4. e3 {[%clk 0:03:01]}  Bg7 {[%clk 0:02:58]} 5. h4 {[%clk 0:03:01]}  h5 {[%clk 0:02:57]} 6. Nf3 {[%clk 0:03:00]}  O-O {[%clk 0:02:57]} 7. Ne5 {[%clk 0:02:59]}  c5 {[%clk 0:02:56]} 8. dxc5 {[%clk 0:02:50]}  Qa5 {[%clk 0:02:55]} 9. Nd3 {[%clk 0:02:40]}  Ne4 {[%clk 0:02:50]} 10. Be2 {[%clk 0:02:33]}  Nxc3 {[%clk 0:01:14]} 11. bxc3 {[%clk 0:02:13]} 1/2-1/2


[Site "https://www.chess.com"]

[Event "Titled Tuesday Blitz June 27 Early 2023"]
[White "Herman, Daniel"]
[Black "Nilssen, Ellen Fredericia"]
[WhiteFideId "30935008"]
[BlackFideId "1441230"]
[WhiteElo "2427"]
[BlackElo "2222"]
[Result "1/2-1/2"]
[Round "7"]
[TimeControl "180+2"]
[Date "2023.06.27"]
[WhiteClock "0:00:44"]
[BlackClock "0:02:26"]
[Board "165"]

1. Nf3 {[%clk 0:03:00]}  d5 {[%clk 0:02:56]} 2. c4 {[%clk 0:02:59]}  c6 {[%clk 0:02:55]} 3. e3 {[%clk 0:02:58]}  Nf6 {[%clk 0:02:55]} 4. b3 {[%clk 0:02:58]}  g6 {[%clk 0:02:55]} 5. Bb2 {[%clk 0:02:58]}  Bg7 {[%clk 0:02:55]} 6. Be2 {[%clk 0:02:54]}  O-O {[%clk 0:02:55]} 7. O-O {[%clk 0:02:54]}  Re8 {[%clk 0:02:55]} 8. d4 {[%clk 0:02:52]}  Ne4 {[%clk 0:02:51]} 9. Nbd2 {[%clk 0:02:48]}  Nxd2 {[%clk 0:02:46]} 10. Qxd2 {[%clk 0:02:46]}  Nd7 {[%clk 0:02:45]} 11. cxd5 {[%clk 0:02:41]}  cxd5 {[%clk 0:02:45]} 12. Rac1 {[%clk 0:02:41]}  Nf6 {[%clk 0:02:44]} 13. Ba3 {[%clk 0:00:44]}  Ne4 {[%clk 0:02:26]} 1/2-1/2


[Site "https://www.chess.com"]

[Event "Titled Tuesday Blitz June 27 Early 2023"]
[White "Matyukov, Petr"]
[Black "Georg, Heinz"]
[WhiteFideId "4103688"]
[BlackFideId "4607295"]
[WhiteElo "2481"]
[BlackElo "2282"]
[Result "1-0"]
[Round "7"]
[TimeControl "180+2"]
[Date "2023.06.27"]
[WhiteClock "0:00:12"]
[BlackClock "0:00:00"]
[Board "170"]

1. d4 {[%clk 0:03:00]}  f5 {[%clk 0:02:59]} 2. Nf3 {[%clk 0:02:58]}  Nf6 {[%clk 0:02:59]} 3. c4 {[%clk 0:02:58]}  g6 {[%clk 0:02:57]} 4. Nc3 {[%clk 0:02:55]}  Bg7 {[%clk 0:02:57]} 5. e3 {[%clk 0:02:55]}  O-O {[%clk 0:02:57]} 6. Bd3 {[%clk 0:02:54]}  d6 {[%clk 0:02:58]} 7. O-O {[%clk 0:02:54]}  c6 {[%clk 0:02:58]} 8. Qc2 {[%clk 0:02:51]}  Qe8 {[%clk 0:02:54]} 9. Rb1 {[%clk 0:02:44]}  e5 {[%clk 0:02:53]} 10. dxe5 {[%clk 0:02:45]}  dxe5 {[%clk 0:02:53]} 11. Be2 {[%clk 0:02:45]}  e4 {[%clk 0:02:52]} 12. Nd4 {[%clk 0:02:44]}  Nbd7 {[%clk 0:02:52]} 13. b4 {[%clk 0:02:43]}  Ne5 {[%clk 0:02:51]} 14. Qb3 {[%clk 0:02:36]}  Kh8 {[%clk 0:02:48]} 15. a4 {[%clk 0:02:30]}  g5 {[%clk 0:02:16]} 16. Ba3 {[%clk 0:01:59]}  Rg8 {[%clk 0:02:14]} 17. b5 {[%clk 0:01:53]}  g4 {[%clk 0:02:12]} 18. Bd6 {[%clk 0:01:42]}  Nf3+ {[%clk 0:01:54]} 19. Kh1 {[%clk 0:01:33]}  Nxd4 {[%clk 0:01:52]} 20. exd4 {[%clk 0:01:33]}  Nh5 {[%clk 0:01:43]} 21. Rbd1 {[%clk 0:01:27]}  f4 {[%clk 0:01:25]} 22. f3 {[%clk 0:01:13]}  gxf3 {[%clk 0:01:16]} 23. gxf3 {[%clk 0:01:12]}  e3 {[%clk 0:01:15]} 24. Ne4 {[%clk 0:01:07]}  Bf5 {[%clk 0:01:07]} 25. c5 {[%clk 0:00:49]}  Nf6 {[%clk 0:00:26]} 26. Ng5 {[%clk 0:00:43]}  Nd5 {[%clk 0:00:25]} 27. bxc6 {[%clk 0:00:35]}  bxc6 {[%clk 0:00:24]} 28. Qb7 {[%clk 0:00:34]}  Bg6 {[%clk 0:00:22]} 29. Bd3 {[%clk 0:00:27]}  Bf6 {[%clk 0:00:20]} 30. Bxg6 {[%clk 0:00:25]}  Qxg6 {[%clk 0:00:18]} 31. Nf7+ {[%clk 0:00:25]}  Kg7 {[%clk 0:00:19]} 32. Ne5+ {[%clk 0:00:25]}  Kh8 {[%clk 0:00:16]} 33. Nxg6+ {[%clk 0:00:25]}  hxg6 {[%clk 0:00:16]} 34. Rg1 {[%clk 0:00:20]}  e2 {[%clk 0:00:16]} 35. Rde1 {[%clk 0:00:20]}  Bxd4 {[%clk 0:00:16]} 36. Rg4 {[%clk 0:00:18]}  Rg7 {[%clk 0:00:14]} 37. Qxa8+ {[%clk 0:00:16]}  Rg8 {[%clk 0:00:13]} 38. Rh4+ {[%clk 0:00:15]}  Kg7 {[%clk 0:00:14]} 39. Qb7+ {[%clk 0:00:15]}  Kf6 {[%clk 0:00:12]} 40. Rxf4+ {[%clk 0:00:10]}  Nxf4 {[%clk 0:00:11]} 41. Bxf4 {[%clk 0:00:11]}  Rg7 {[%clk 0:00:10]} 42. Qxc6+ {[%clk 0:00:11]}  Kf5 {[%clk 0:00:08]} 43. Qe4+ {[%clk 0:00:12]}  Kf6 {[%clk 0:00:00]} 44. Qxd4+ {[%clk 0:00:12]} 1-0


[Site "https://www.chess.com"]

[Event "Titled Tuesday Blitz June 27 Early 2023"]
[White "Zampronha, Wladimir Camilo"]
[Black "Begunov, Konstantin"]
[WhiteFideId "2103087"]
[BlackFideId "4118510"]
[WhiteElo "2248"]
[BlackElo "2432"]
[Result "1/2-1/2"]
[Round "7"]
[TimeControl "180+2"]
[Date "2023.06.27"]
[WhiteClock "0:02:13"]
[BlackClock "0:01:09"]
[Board "172"]

1. e4 {[%clk 0:03:00]}  c5 {[%clk 0:02:56]} 2. Nf3 {[%clk 0:03:01]}  d6 {[%clk 0:02:56]} 3. d4 {[%clk 0:03:01]}  cxd4 {[%clk 0:02:57]} 4. Nxd4 {[%clk 0:03:02]}  Nf6 {[%clk 0:02:58]} 5. Nc3 {[%clk 0:03:02]}  a6 {[%clk 0:02:58]} 6. Bg5 {[%clk 0:03:02]}  e6 {[%clk 0:02:59]} 7. f4 {[%clk 0:03:02]}  Qb6 {[%clk 0:02:59]} 8. Qd2 {[%clk 0:03:00]}  Nc6 {[%clk 0:02:59]} 9. Nb3 {[%clk 0:02:54]}  Be7 {[%clk 0:02:57]} 10. O-O-O {[%clk 0:02:52]}  O-O {[%clk 0:02:57]} 11. g4 {[%clk 0:02:44]}  Kh8 {[%clk 0:01:09]} 12. h4 {[%clk 0:02:13]} 1/2-1/2


[Site "https://www.chess.com"]

[Event "Titled Tuesday Blitz June 27 Early 2023"]
[White "Samarth J Rao"]
[Black "Ho, In Hei Henry"]
[WhiteFideId "46652370"]
[BlackFideId "6002552"]
[WhiteElo "2184"]
[BlackElo "2023"]
[Result "1/2-1/2"]
[Round "7"]
[TimeControl "180+2"]
[Date "2023.06.27"]
[WhiteClock "0:02:31"]
[BlackClock "0:00:58"]
[Board "175"]

1. d4 {[%clk 0:03:00]}  g6 {[%clk 0:03:00]} 2. Nf3 {[%clk 0:02:59]}  Bg7 {[%clk 0:03:01]} 3. e3 {[%clk 0:03:00]}  d6 {[%clk 0:03:02]} 4. Bd3 {[%clk 0:03:00]}  Nf6 {[%clk 0:03:02]} 5. O-O {[%clk 0:03:01]}  O-O {[%clk 0:03:02]} 6. b3 {[%clk 0:03:02]}  c6 {[%clk 0:03:02]} 7. Bb2 {[%clk 0:03:02]}  Nbd7 {[%clk 0:03:02]} 8. c4 {[%clk 0:03:03]}  d5 {[%clk 0:03:01]} 9. Qc2 {[%clk 0:03:03]}  e6 {[%clk 0:03:00]} 10. Nbd2 {[%clk 0:03:03]}  b6 {[%clk 0:02:58]} 11. Ne5 {[%clk 0:03:03]}  Bb7 {[%clk 0:02:58]} 12. f4 {[%clk 0:03:01]}  Rc8 {[%clk 0:02:59]} 13. e4 {[%clk 0:03:01]}  dxe4 {[%clk 0:02:57]} 14. Nxe4 {[%clk 0:03:01]}  c5 {[%clk 0:02:51]} 15. dxc5 {[%clk 0:03:00]}  Nxc5 {[%clk 0:02:44]} 16. Nxc5 {[%clk 0:03:00]}  Rxc5 {[%clk 0:02:41]} 17. Rad1 {[%clk 0:03:00]}  Qc7 {[%clk 0:00:58]} 18. Ba3 {[%clk 0:02:31]} 1/2-1/2


[Site "https://www.chess.com"]

[Event "Titled Tuesday Blitz June 27 Early 2023"]
[White "Labussiere, Yago"]
[Black "campochess"]
[WhiteFideId "2186969"]
[WhiteElo "2454"]
[BlackElo "2165"]
[Result "1/2-1/2"]
[Round "7"]
[TimeControl "180+2"]
[Date "2023.06.27"]
[WhiteClock "0:01:24"]
[BlackClock "0:01:55"]
[Board "177"]

1. d4 {[%clk 0:02:51]}  c5 {[%clk 0:02:57]} 2. d5 {[%clk 0:02:51]}  Nf6 {[%clk 0:02:56]} 3. Nc3 {[%clk 0:02:51]}  g6 {[%clk 0:02:56]} 4. e4 {[%clk 0:02:51]}  d6 {[%clk 0:02:56]} 5. Nf3 {[%clk 0:02:51]}  Bg7 {[%clk 0:02:56]} 6. h3 {[%clk 0:02:50]}  a6 {[%clk 0:02:55]} 7. a4 {[%clk 0:02:50]}  O-O {[%clk 0:02:54]} 8. Bf4 {[%clk 0:02:49]}  Nfd7 {[%clk 0:02:53]} 9. Bd3 {[%clk 0:02:47]}  b6 {[%clk 0:02:44]} 10. O-O {[%clk 0:02:45]}  Ra7 {[%clk 0:02:44]} 11. Nd2 {[%clk 0:02:44]}  Re8 {[%clk 0:02:43]} 12. Nc4 {[%clk 0:02:44]}  Ne5 {[%clk 0:02:35]} 13. Nxe5 {[%clk 0:01:24]}  dxe5 {[%clk 0:01:55]} 1/2-1/2


[Site "https://www.chess.com"]

[Event "Titled Tuesday Blitz June 27 Early 2023"]
[White "Semenova, Alina"]
[Black "Zaichenko, Daria"]
[WhiteFideId "24113875"]
[BlackFideId "4197453"]
[WhiteElo "2052"]
[BlackElo "2266"]
[Result "1/2-1/2"]
[Round "7"]
[TimeControl "180+2"]
[Date "2023.06.27"]
[WhiteClock "0:01:07"]
[BlackClock "0:02:10"]
[Board "182"]

1. e4 {[%clk 0:02:59]}  c5 {[%clk 0:02:59]} 2. Nf3 {[%clk 0:02:58]}  Nc6 {[%clk 0:02:58]} 3. d4 {[%clk 0:02:59]}  cxd4 {[%clk 0:02:59]} 4. Nxd4 {[%clk 0:03:00]}  Nf6 {[%clk 0:02:59]} 5. Nc3 {[%clk 0:03:00]}  d6 {[%clk 0:02:59]} 6. Be2 {[%clk 0:02:59]}  e5 {[%clk 0:02:58]} 7. Nb3 {[%clk 0:02:58]}  Be7 {[%clk 0:02:58]} 8. O-O {[%clk 0:02:58]}  O-O {[%clk 0:02:58]} 9. Be3 {[%clk 0:02:58]}  a5 {[%clk 0:02:52]} 10. a4 {[%clk 0:02:57]}  Be6 {[%clk 0:02:52]} 11. f3 {[%clk 0:02:48]}  d5 {[%clk 0:02:48]} 12. exd5 {[%clk 0:02:45]}  Nxd5 {[%clk 0:02:47]} 13. Nxd5 {[%clk 0:02:44]}  Bxd5 {[%clk 0:02:46]} 14. Nc5 {[%clk 0:01:07]}  Bxc5 {[%clk 0:02:10]} 1/2-1/2


[Site "https://www.chess.com"]

[Event "Titled Tuesday Blitz June 27 Early 2023"]
[White "Skiadopoulos, Nikolaos"]
[Black "Abrosimov, Vladimir"]
[WhiteFideId "4200772"]
[BlackFideId "4166892"]
[WhiteElo "1921"]
[BlackElo "2234"]
[Result "0-1"]
[Round "7"]
[TimeControl "180+2"]
[Date "2023.06.27"]
[WhiteClock "0:00:00"]
[BlackClock "0:02:29"]
[Board "185"]

1. e4 {[%clk 0:02:59]}  c5 {[%clk 0:03:00]} 2. b4 {[%clk 0:02:58]}  cxb4 {[%clk 0:02:59]} 3. a3 {[%clk 0:02:58]}  bxa3 {[%clk 0:03:00]} 4. Nxa3 {[%clk 0:02:58]}  d6 {[%clk 0:03:01]} 5. Nf3 {[%clk 0:02:55]}  Nf6 {[%clk 0:03:01]} 6. c3 {[%clk 0:02:50]}  Bd7 {[%clk 0:03:00]} 7. d3 {[%clk 0:02:43]}  g6 {[%clk 0:03:00]} 8. Be2 {[%clk 0:02:42]}  Bg7 {[%clk 0:02:59]} 9. h4 {[%clk 0:02:35]}  Qc7 {[%clk 0:02:58]} 10. Bd2 {[%clk 0:02:31]}  a6 {[%clk 0:02:56]} 11. h5 {[%clk 0:02:27]}  Nxh5 {[%clk 0:02:53]} 12. Rxh5 {[%clk 0:00:00]}  gxh5 {[%clk 0:02:29]} 0-1


[Site "https://www.chess.com"]

[Event "Titled Tuesday Blitz June 27 Early 2023"]
[White "Ajavon, Anthony Obieni"]
[Black "Vargas, Mauricio"]
[WhiteFideId "12600784"]
[BlackFideId "4404572"]
[WhiteElo "2013"]
[BlackElo "1842"]
[Result "1/2-1/2"]
[Round "7"]
[TimeControl "180+2"]
[Date "2023.06.27"]
[WhiteClock "0:02:32"]
[BlackClock "0:00:41"]
[Board "188"]

1. d4 {[%clk 0:03:00]}  d5 {[%clk 0:02:58]} 2. c4 {[%clk 0:03:00]}  c6 {[%clk 0:02:58]} 3. Nc3 {[%clk 0:03:01]}  e6 {[%clk 0:02:58]} 4. Nf3 {[%clk 0:03:02]}  Nf6 {[%clk 0:02:47]} 5. Bf4 {[%clk 0:03:03]}  Nbd7 {[%clk 0:02:47]} 6. e3 {[%clk 0:03:03]}  Bd6 {[%clk 0:02:45]} 7. Bxd6 {[%clk 0:03:02]}  Nb6 {[%clk 0:02:33]} 8. c5 {[%clk 0:02:58]}  Nc4 {[%clk 0:02:32]} 9. Bxc4 {[%clk 0:02:57]}  dxc4 {[%clk 0:02:32]} 10. O-O {[%clk 0:02:57]}  b6 {[%clk 0:00:41]} 11. a4 {[%clk 0:02:32]} 1/2-1/2


[Site "https://www.chess.com"]

[Event "Titled Tuesday Blitz June 27 Early 2023"]
[White "Ivanova, Karina"]
[Black "Larina, Maria"]
[WhiteFideId "24139750"]
[BlackFideId "24113182"]
[WhiteElo "2158"]
[BlackElo "2188"]
[Result "1/2-1/2"]
[Round "7"]
[TimeControl "180+2"]
[Date "2023.06.27"]
[WhiteClock "0:01:16"]
[BlackClock "0:01:49"]
[Board "189"]

1. e4 {[%clk 0:03:00]}  c6 {[%clk 0:02:59]} 2. Nf3 {[%clk 0:02:58]}  d5 {[%clk 0:02:59]} 3. exd5 {[%clk 0:02:57]}  cxd5 {[%clk 0:02:59]} 4. d4 {[%clk 0:02:57]}  Bg4 {[%clk 0:02:58]} 5. Bb5+ {[%clk 0:02:54]}  Nc6 {[%clk 0:02:57]} 6. c3 {[%clk 0:02:42]}  Nf6 {[%clk 0:02:56]} 7. h3 {[%clk 0:02:41]}  Bh5 {[%clk 0:02:55]} 8. O-O {[%clk 0:02:39]}  Bxf3 {[%clk 0:02:49]} 9. Qxf3 {[%clk 0:02:38]}  e6 {[%clk 0:02:49]} 10. Bg5 {[%clk 0:02:37]}  Be7 {[%clk 0:02:49]} 11. Nd2 {[%clk 0:02:36]}  h6 {[%clk 0:02:46]} 12. Bh4 {[%clk 0:02:35]}  O-O {[%clk 0:02:46]} 13. Rfe1 {[%clk 0:01:16]}  Rc8 {[%clk 0:01:49]} 1/2-1/2


[Site "https://www.chess.com"]